[Event "37th ECCC 2022"]
[Site "Mayrhofen"]
[Date "2022.10.04"]
[Round "2.12"]
[White "Anton Guijarro, David"]
[Black "Wiersma, Eelke"]
[Result "1-0"]
[ECO "A11"]
[WhiteElo "2655"]
[BlackElo "2299"]
[Annotator "TA"]
[PlyCount "125"]
[EventDate "2022.10.03"]
[EventType "team-tourn"]
[EventCountry "AUT"]
[SourceTitle "playchess.com"]
[Source "ChessBase"]
[SourceQuality "1"]
[TimeControl "40/5400+30:1800+30"]

{[%evp 14,125,0,0,0,2,1,0,0,0,0,0,0,0,12,19,4,7,12,0,0,0,0,0,0,0,13,18,35,0,12,16,79,66,72,11,81,14,34,24,25,-32,-44,-37,-23,-64,-64,-58,-11,-20,-14,-15,-18,-36,-43,-42,-42,-43,-43,-43,-43,-43,-43,-43,-43,-43,-11,-11,-11,-4,0,-24,-30,-45,0,0,0,0,77,67,197,187,152,153,168,155,226,15,19,21,182,150,151,126,855,723,1438,1276,1445,1354,1170,1083,2754,2704,1785,2371,2230,2200,29973,29973,29984,29985,29985,29985]} 1. c4 {[%emt 0:00:07]} c6 {[%emt 0:00:09]} 2. Nf3 {[%emt 0:01:59]} d5 {[%emt 0:00:11]} 3. e3 {[%emt 0:00:36]} Nf6 {[%emt 0:00:00]} 4. Nc3 e6 {[%emt 0:00:06]} 5. b3 {[%emt 0:02:43]} Nbd7 {[%emt 0:00:13]} 6. Qc2 {[%emt 0:01:46]} Bd6 7. Bb2 {[%emt 0:03:37]} O-O {[%emt 0:01:12]} 8. Be2 Qe7 {A11: English Opening: 1...c6.} 9. O-O {[%emt 0:05:52]} e5 {[%emt 0:06:04]} 10. cxd5 {[%emt 0:01:30]} Nxd5 {[%emt 0:00:11] The position is equal.} 11. Ne4 {[%emt 0:11:45]} Bc7 {[%emt 0:01:38]} 12. Ng3 {[%emt 0:01:19]} Re8 {[%emt 0:04:36]} 13. a3 {[%emt 0:04:46]} Nf8 {[%emt 0:08:22][%cal Bd7f8,Bf8g6,Bg6h4][%mdl 32] [#]} 14. b4 $146 {[%emt 0:02:11]} ({Predecessor:} 14. d3 Bd7 15. Rfe1 Rad8 16. Rac1 a6 17. Rcd1 Bc8 18. Qc4 Ng6 19. b4 Kh8 20. Bf1 {½-½ (26) Terentiev,V (2393)-Svirin,O (2366) Smolensk 2000}) 14... a6 {[%emt 0:00:59] Prevents b5.} 15. Rac1 {[%emt 0:00:37]} Ng6 {[%emt 0:07:22]} 16. Qb1 {[%emt 0:04:41]} Bg4 {[%emt 0:07:41]} 17. h3 {[%emt 0:04:09]} Bd7 {[%emt 0:01:45]} 18. Bc4 {[%emt 0:05:11]} Bb8 {[%emt 0:09:15]} 19. Bb3 {[%emt 0:12:50]} e4 {[%emt 0:11:10]} 20. Nd4 {[%emt 0:00:59]} Nh4 {[%emt 0:00:25]} 21. Bc2 {[%emt 0:07:09][%cal Rc2e4]} f5 {[%emt 0:03:55]} 22. Bb3 {[%emt 0:05:41]} Kh8 {[%emt 0:10:11]} (22... Qf7 $11) 23. Bxd5 $16 {[%emt 0:01:40]} cxd5 {[%emt 0:00:10]} 24. Rc5 {[%emt 0:00:34]} (24. Qa2 $1 $16) 24... Be6 {[%emt 0:12:26]} (24... b6 $11 25. Nc6 (25. Rxd5 Qf7 $15) 25... Qf7 26. Nxb8 Bb5 27. Rxb5 Raxb8) 25. Qd1 {[%emt 0:12:31]} ({Don't play} 25. Nxe6 Qxe6 26. Qd1 Bd6 $11) ({Better is} 25. Qa1 $16) 25... Bd6 $11 {[%emt 0:01:46]} 26. Nxe6 {[%emt 0:00:17]} Qxe6 {[%emt 0:00:10]} 27. Qh5 {[%emt 0:00:30]} (27. Rc2 $11) 27... Bxc5 $15 {[%emt 0:01:55]} 28. bxc5 {[%emt 0:00:08]} Qe7 {[%emt 0:01:36]} 29. Nxf5 {[%emt 0:07:06] Really sharp!} Nxf5 {[%emt 0:00:08]} 30. Qxf5 {[%emt 0:00:02]} Rad8 {[%emt 0:04:03]} (30... Qxc5 $15 {should be considered.} 31. Qf7 Qf8 32. Qxd5 Rad8) 31. Bd4 $11 {[%emt 0:00:33]} Qd7 {[%emt 0:01:27]} 32. Qh5 {[%emt 0:00:48]} Rf8 {[%emt 0:00:27]} 33. Rb1 {[%emt 0:01:12]} Rc8 {[%emt 0:02:01]} 34. Qg4 {[%emt 0:01:06]} Rf7 {[%emt 0:00:32]} 35. Qxd7 {[%emt 0:01:04]} Rxd7 $15 {[%emt 0:00:08][%mdl 4096] Endgame KRR-KRB} 36. f4 {[%emt 0:00:19]} exf3 {[%emt 0:01:19]} 37. gxf3 {[%emt 0:00:05]} Rc6 {[%emt 0:00:08]} 38. f4 {[%emt 0:00:33]} Kg8 {[%emt 0:00:14]} 39. Kg2 {[%emt 0:00:30]} Rf7 {[%emt 0:02:11]} 40. d3 {[%emt 0:01:29]} Rg6+ {[%emt 0:01:01]} 41. Kf3 {[%emt 0:30:31]} Rh6 {[%emt 0:05:04]} 42. Rh1 {[%emt 0:00:00]} g5 {[%emt 0:03:58]} 43. Be5 {[%emt 0:00:00]} gxf4 {[%emt 0:02:35]} 44. exf4 {[%emt 0:00:00]} Kf8 {[%emt 0:03:18]} 45. h4 {[%emt 0:00:00][%cal Bh3h4,Bh4h5][%mdl 32]} Rh5 {[%emt 0:07:44] [#]} (45... Rg6 $11 {keeps the balance.}) 46. Kg4 $1 $16 {[%emt 0:00:00][%mdl 1024] White has strong compensation.} Rhf5 {[%emt 0:01:14] [#]} (46... Rh6 $1 $14) 47. h5 $1 $18 {[%emt 0:00:00]} Ke8 {[%emt 0:02:35]} 48. Rb1 {[%emt 0:00:00]} Kd8 {[%emt 0:00:09]} 49. Rb6 {[%emt 0:00:00]} Kc8 {[%emt 0:00:34]} (49... a5 $16 50. c6 bxc6) 50. Rd6 $2 {[%emt 0:00:00]} ({White should play} 50. c6 $18 bxc6 51. Rxc6+ Kb7 52. Rd6) 50... Rf8 $11 {[%emt 0:00:14]} 51. Rxd5 {[%emt 0:00:00]} R8f7 $2 {[%emt 0:00:43]} (51... R5f7 $1 $11 {and Black stays safe.}) 52. Rd6 $18 {[%emt 0:00:00] Hoping for Rh6.} Rf8 {[%emt 0:00:08]} 53. d4 {[%emt 0:00:05][%cal Bd3d4,Bd4d5,Bd5c6][%mdl 32] White is more active.} R8f7 $2 {[%emt 0:00:08][%mdl 8192]} (53... R5f7 $16) 54. Rh6 {[%emt 0:00:18]} Kd7 {[%emt 0:00:19]} 55. d5 {[%emt 0:01:40]} Kc8 {[%emt 0:00:12]} 56. Rb6 {[%emt 0:01:06]} Rf8 {[%emt 0:00:18]} 57. c6 {[%emt 0:00:10]} bxc6 {[%emt 0:00:15]} 58. dxc6 {[%emt 0:00:18][%csl Ge5][%cal Rb6b8]} Rxe5 {[%emt 0:01:05]} 59. fxe5 {[%emt 0:00:07][%cal Bf4e5,Be5e6,Be6e7][%mdl 32] KR-KR} Kc7 {[%emt 0:00:18]} 60. Rxa6 {[%emt 0:00:40]} h6 {[%emt 0:00:08]} 61. e6 {[%emt 0:00:29] White mates.} Rf6 {[%emt 0:00:17]} 62. e7 {[%emt 0:00:07]} Re6 {[%emt 0:00:05]} 63. Kf5 {[%emt 0:00:51] Weighted Error Value: White=0.15 (very precise) /Black=0.34} 1-0

[Event "37th ECCC 2022"]
[Site "Mayrhofen"]
[Date "2022.10.04"]
[Round "2.13"]
[White "Esipenko, Andrey"]
[Black "Baldauf, Marco"]
[Result "1-0"]
[ECO "B41"]
[WhiteElo "2668"]
[BlackElo "2506"]
[Annotator "TA"]
[PlyCount "63"]
[EventDate "2022.10.03"]
[EventType "team-tourn"]
[EventCountry "AUT"]
[SourceTitle "playchess.com"]
[Source "ChessBase"]
[SourceQuality "1"]
[TimeControl "40/5400+30:1800+30"]

{[%evp 13,63,20,61,31,44,41,40,38,47,38,44,29,39,31,25,22,54,25,49,4,34,0,0,-18,52,25,94,100,100,105,175,160,175,164,367,367,332,352,595,391,658,655,667,656,659,657,600,447,973,937,6291,1962]} 1. e4 {[%emt 0:00:04]} c5 {[%emt 0:00:06]} 2. Nf3 {[%emt 0:00:13]} e6 {[%emt 0:00:06]} 3. d4 {[%emt 0:00:56]} cxd4 {[%emt 0:00:04]} 4. Nxd4 {[%emt 0:00:06]} a6 {[%emt 0:00:04]} 5. a3 {[%emt 0:01:08]} Qc7 {[%emt 0:02:57]} 6. c4 {[%emt 0:00:48]} Nf6 {[%emt 0:00:14]} 7. Nc3 {[%emt 0:00:05]} b6 {[%emt 0:00:12]} 8. f4 {[%emt 0:13:39] B41: Sicilian: Kan Variation: 5 c4.} d6 {[%emt 0:04:15] Prevents e5.} 9. Bd3 {[%emt 0:01:00]} g6 {[%emt 0:02:55]} 10. Be3 {[%emt 0:03:04] White is slightly better.} Bg7 {[%emt 0:03:44]} 11. O-O {[%emt 0:02:03][%cal Oe4e5] e5! is the strong threat.} O-O {[%emt 0:02:24]} 12. Rc1 {[%emt 0:00:51]} Bb7 {[%emt 0:03:23]} 13. b4 {[%emt 0:03:13]} Nbd7 {[%emt 0:01:03]} 14. Nb3 {[%emt 0:07:43]} Rac8 {[%emt 0:01:57]} 15. Qe2 {[%emt 0:01:38]} Qb8 {[%emt 0:03:47] [#]} 16. a4 $146 {[%emt 0:11:48]} ({Predecessor:} 16. Kh1 Qa8 17. Nd2 Nh5 18. Na4 b5 19. cxb5 Rxc1 20. Rxc1 axb5 21. Bxb5 Ndf6 22. Nc4 Nxe4 {0-1 (43) Bernal Moro,L (2413)-Bruzon Batista,L (2643) Linares 2017}) 16... Ba8 {[%emt 0:16:31]} 17. Kh1 {[%emt 0:07:22]} Rfe8 {[%emt 0:06:48]} 18. Bd2 {[%emt 0:01:07]} h5 {[%emt 0:08:23]} ({Black should try} 18... Nh5 $11) 19. h3 $14 {[%emt 0:01:10]} Rc7 {[%emt 0:01:44]} (19... Bb7 $11) 20. e5 $16 {[%emt 0:16:23]} dxe5 {[%emt 0:10:53]} 21. fxe5 {[%emt 0:00:10]} Nh7 {[%emt 0:00:05] [#]} (21... Nxe5 $16 {keeps fighting.} 22. Qxe5 Ne4) 22. Rxf7 $3 $18 {[%emt 0:00:29][%mdl 512]} Kxf7 {[%emt 0:00:06] [#]} 23. Bxg6+ $1 {[%emt 0:00:09][%mdl 64] Decoy} Kxg6 $2 {[%emt 0:02:54]} (23... Kg8 {is a better defense.}) 24. Qd3+ {[%emt 0:00:08][%mdl 64] Skewer, Deflection} Kf7 {[%emt 0:00:06]} 25. Qxh7 {[%emt 0:00:07] Chess con chili.} Nxe5 $2 {[%emt 0:00:40]} (25... Bxg2+ $2 26. Kxg2 Rf8 27. Bh6 $18) (25... Rh8 26. Rf1+ Ke8 27. Qxg7 Rf8 28. Qg6+ Kd8 29. Qg5+ (29. Rxf8+ Nxf8 30. Qg5+ Kd7 $16) 29... Kc8 30. Rxf8+ Nxf8) 26. Rf1+ {[%emt 0:02:36]} Bf3 $2 {[%emt 0:01:58]} (26... Nf3) 27. Bh6 {[%emt 0:02:04][%csl Gh6][%cal Rh7g7] White is clearly winning.} Rg8 {[%emt 0:02:17][%cal Ob8f8]} 28. Nd4 {[%emt 0:01:20][%mdl 64] Pin} Qf8 {[%emt 0:04:44][%cal Of7e8]} 29. Nxf3 {[%emt 0:06:35] Pair of Knights!} Ke8 {[%emt 0:01:59]} 30. Bg5 {[%emt 0:08:36]} ({Not} 30. Bxg7 Nxf3 31. Qe4 (31. Bxf8 Rxh7 32. Rxf3 Rxf8 $17) (31. Qxh5+ Qf7 $14) 31... Qf5 $16) 30... Nxf3 {[%emt 0:04:18]} (30... Qf7 $142 31. Nd2 Bf6 32. Qxf7+ Rxf7 33. Bxf6 Nd7) 31. Rxf3 {[%emt 0:00:09] White wants to mate with Qg6+.} Rf7 {[%emt 0:01:33]} 32. Qe4 {[%emt 0:00:07] Weighted Error Value: White=0.32/Black=0.56} 1-0

[Event "37th ECCC 2022"]
[Site "Mayrhofen"]
[Date "2022.10.04"]
[Round "2.14"]
[White "Berchtenbreiter, Maximilian"]
[Black "Moussard, Jules"]
[Result "1/2-1/2"]
[ECO "B94"]
[WhiteElo "2509"]
[BlackElo "2686"]
[Annotator "TA"]
[PlyCount "64"]
[EventDate "2022.10.03"]
[EventType "team-tourn"]
[EventCountry "AUT"]
[SourceTitle "playchess.com"]
[Source "ChessBase"]
[SourceQuality "1"]
[TimeControl "40/5400+30:1800+30"]

{[%evp 13,64,0,5,0,0,4,3,0,6,0,7,10,10,12,1,8,31,31,32,29,28,0,36,35,33,35,43,23,23,23,23,23,23,12,23,23,23,23,29,0,0,0,158,0,0,0,0,0,0,0,0,0,0]} 1. e4 {[%emt 0:00:08]} c5 {[%emt 0:00:06]} 2. Nf3 {[%emt 0:00:06][%cal Bg1f3,Bf3d4,Bd4f5][%mdl 32]} d6 {[%emt 0:00:06]} 3. d4 {[%emt 0:00:08]} cxd4 {[%emt 0:00:05]} 4. Nxd4 {[%emt 0:00:05]} Nf6 {[%emt 0:00:07]} 5. Nc3 {[%emt 0:00:05]} a6 {[%emt 0:00:06]} 6. Bg5 {[%emt 0:01:19]} Nbd7 {[%emt 0:00:12]} 7. f4 {[%emt 0:00:07] 7.Qe2 is the modern continuation.} Qc7 {[%emt 0:00:18]} 8. Qe2 {[%emt 0:01:46] B94: Sicilian Najdorf: 6 Bg5 Nbd7.} e5 {[%emt 0:11:42]} 9. Nf5 {[%emt 0:02:00]} h6 {[%emt 0:01:06]} 10. Bxf6 {[%emt 0:01:15]} Nxf6 {[%emt 0:00:07]} 11. g3 {[%emt 0:00:46] [#]} Bxf5 $146 {[%emt 0:18:45]} ({Predecessor:} 11... d5 12. O-O-O d4 13. Nb1 exf4 14. Bg2 fxg3 15. e5 Bxf5 16. exf6+ Be6 17. Rxd4 Bc5 {0-1 (28) Naiditsch,A (2710)-Korobov,A (2715) Kiev 2013}) 12. exf5 {[%emt 0:00:13]} O-O-O {[%emt 0:00:41][%cal Oe5e4] And now ...e4! would win.} 13. O-O-O {[%emt 0:02:02]} exf4 {[%emt 0:00:15]} 14. Bg2 {[%emt 0:07:02] Prevents d5.} d5 {[%emt 0:02:27]} 15. Nxd5 {[%emt 0:00:47]} Nxd5 {[%emt 0:00:12]} 16. Bxd5 {[%emt 0:00:24]} fxg3 {[%emt 0:11:20]} 17. Qf3 {[%emt 0:00:04][%cal Od5b7] aiming for Bxb7+!} Bc5 {[%emt 0:04:52]} 18. hxg3 {[%emt 0:01:24]} ({Much worse is} 18. f6 gxh2 19. fxg7 Rhg8 $11) 18... Kb8 {[%emt 0:01:23]} 19. Rd3 {[%emt 0:04:58]} Rd6 {[%emt 0:06:39]} 20. Rb3 {[%emt 0:23:32][%cal Rb3b7]} Rb6 {[%emt 0:00:40]} 21. Rxb6 {[%emt 0:05:34]} Bxb6 {[%emt 0:04:29]} 22. Re1 {[%emt 0:02:10]} Rd8 {[%emt 0:02:02]} 23. a3 {[%emt 0:20:10]} Rd7 {[%emt 0:08:33]} (23... Bf2 {keeps more tension.} 24. Rf1 Bxg3 25. Bxb7 Qf4+) 24. Kb1 {[%emt 0:05:58][%cal Bc1b1,Bb1a2,Ba2a1][%mdl 32]} Ka7 {[%emt 0:02:33]} 25. g4 {[%emt 0:01:22]} Bc5 {[%emt 0:02:09]} 26. Ka2 {[%emt 0:05:51]} Bxa3 {[%emt 0:04:16]} 27. bxa3 {[%emt 0:02:38] [#] c4 is the strong threat.} ({Much weaker is} 27. Qxa3 Rxd5 28. Qe3+ Qb6 $17) 27... Qxc2+ {[%emt 0:00:08]} 28. Ka1 {[%emt 0:00:03]} Rxd5 $1 {[%emt 0:00:36] The position is equal.} 29. Qxd5 {[%emt 0:00:02] White wants to mate with Qd4+.} Qc3+ {[%emt 0:00:07]} 30. Ka2 {[%emt 0:00:04]} Qc2+ {[%emt 0:00:15]} 31. Ka1 {[%emt 0:00:10] [#] Threatening mate with Qd4+.} Qc3+ {[%emt 0:00:03]} 32. Ka2 {[%emt 0:00:02]} Qc2+ {Weighted Error Value: White=0.06 (flawless) /Black=0.16 (very precise)} 1/2-1/2

[Event "37th ECCC 2022"]
[Site "Mayrhofen"]
[Date "2022.10.04"]
[Round "2.15"]
[White "Alekseenko, Kirill"]
[Black "Marcelin, Cyril"]
[Result "1-0"]
[ECO "B38"]
[WhiteElo "2691"]
[BlackElo "2449"]
[Annotator "TA"]
[PlyCount "155"]
[EventDate "2022.10.03"]
[EventType "team-tourn"]
[EventCountry "AUT"]
[SourceTitle "playchess.com"]
[Source "ChessBase"]
[SourceQuality "1"]
[TimeControl "40/5400+30:1800+30"]

{[%evp 11,155,46,49,29,29,31,43,33,37,44,50,50,48,47,67,43,39,45,44,43,46,41,45,37,45,45,46,46,46,46,46,46,46,39,42,42,43,10,14,10,11,14,14,13,23,11,22,0,20,0,0,0,24,0,65,67,60,59,59,59,172,184,162,81,64,97,62,30,30,31,31,18,27,32,33,24,31,31,31,31,31,23,24,8,67,23,23,0,0,0,0,0,29,29,29,29,29,29,67,10,67,67,67,29,67,67,67,67,67,67,67,67,67,67,67,10,10,10,116,116,655,116,168,168,536,168,168,168,29948,29948,29940,11971,6370,2274,29962,29963,29962,29963,29962,29964,29965,29966,29948,29961,4770,4770]} 1. e4 {[%emt 0:00:04]} c5 {[%emt 0:00:14]} 2. Nf3 {[%emt 0:00:42][%cal Bg1f3,Bf3d4,Bd4b5][%mdl 32]} g6 {[%emt 0:00:23]} 3. d4 {[%emt 0:03:35]} cxd4 {[%emt 0:00:23]} 4. Nxd4 {[%emt 0:00:37]} Bg7 {[%emt 0:01:06]} 5. c4 {[%emt 0:02:33]} Nc6 {[%emt 0:00:27]} 6. Be3 {[%emt 0:00:49]} Qb6 {[%emt 0:00:17][%cal Rc6d4] is now debated instead of 6...Nf6.} 7. Nb5 {[%emt 0:15:57] B38: Sicilian: Maroczy Bind with 5...Bg7 and 7...0-0.} (7. Nb3 $5 {[%cal Re3b6]} Qc7 8. Qd2 $14 (8. Nc3 Bxc3+ 9. bxc3 Nf6 $11)) 7... Qa5+ {[%emt 0:00:20]} 8. N5c3 {[%emt 0:04:15]} Nf6 {[%emt 0:01:05]} 9. Nd2 {[%emt 0:02:32] White is slightly better.} d6 {[%emt 0:03:16]} 10. Nb3 {[%emt 0:07:39]} Qd8 {[%emt 0:00:21]} 11. Be2 {[%emt 0:00:51] Inhibits Ng4.} O-O {[%emt 0:03:17]} 12. O-O {[%emt 0:01:27]} b6 {[%emt 0:10:30]} 13. Nd4 {[%emt 0:08:19]} Bb7 {[%emt 0:01:07]} 14. Nxc6 {[%emt 0:02:43]} Bxc6 {[%emt 0:00:03]} 15. f3 {[%emt 0:00:16] [#]} Nd7 $146 {[%emt 0:05:12]} ({Predecessor:} 15... Rc8 16. Qd2 Bb7 17. Rac1 Nd7 18. b3 Nc5 19. Rfd1 Qe8 20. Bh6 Bxh6 21. Qxh6 Kh8 22. Qe3 f6 23. b4 Nd7 {1-0 (68) Bogumil,T (2124)-Berend,E (2349) Marianske Lazne 2016}) 16. Qd2 {[%emt 0:03:03]} a5 {[%emt 0:05:24]} 17. Rac1 {[%emt 0:00:52]} Nc5 {[%emt 0:00:51]} 18. Rfd1 {[%emt 0:00:51]} Na4 {[%emt 0:20:32]} 19. Nxa4 {[%emt 0:04:22]} Bxa4 {[%emt 0:00:07]} 20. b3 {[%emt 0:01:28]} Bc6 {[%emt 0:00:15]} 21. Bf1 {[%emt 0:01:58]} Qc7 {[%emt 0:03:33]} 22. Qf2 {[%emt 0:00:11]} Rab8 {[%emt 0:01:18]} 23. a3 {[%emt 0:07:00]} Qb7 {[%emt 0:09:52]} 24. b4 {[%emt 0:01:15]} axb4 {[%emt 0:12:17]} 25. axb4 {[%emt 0:01:52]} b5 {[%emt 0:00:53]} 26. c5 {[%emt 0:00:34]} dxc5 {[%emt 0:01:23]} 27. Rxc5 {[%emt 0:01:38]} Rfc8 {[%emt 0:00:48]} 28. h4 {[%emt 0:04:37]} h5 {[%emt 0:09:32]} 29. Qg3 {[%emt 0:01:37][%cal Oc5h5]} Kh7 {[%emt 0:02:12]} 30. Rdc1 {[%emt 0:05:42][%cal Oc5c6]} Ra8 {[%emt 0:03:54]} 31. Kh2 {[%emt 0:02:39]} Ra1 {[%emt 0:03:20]} 32. Qe1 {[%emt 0:05:50]} Rxc1 {[%emt 0:00:19]} (32... Rca8 $11) 33. Qxc1 $14 {[%emt 0:00:05][%cal Of1b5] Black must now prevent Bxb5!} Bd7 {[%emt 0:01:41]} 34. Rxc8 $1 {[%emt 0:00:37]} Bxc8 {[%emt 0:00:34]} 35. Qc5 {[%emt 0:00:17] Prevents Be5+.} Bf6 {[%emt 0:00:20]} (35... Bd7 $14) 36. Bxb5 $18 {[%emt 0:05:13]} ({Resist} 36. Qxb5 $6 Bxh4 37. Qc5 e6 $16) 36... Bxh4 {[%emt 0:00:23]} 37. Bc4 {[%emt 0:01:19]} (37. Be8 $18) 37... e6 $16 {[%emt 0:00:52]} 38. b5 {[%emt 0:01:53]} Be7 {[%emt 0:00:15]} 39. Qc6 {[%emt 0:01:07] White is more active.} (39. Qd4 {is more complex.} Qb8+ 40. g3 Qc7 41. b6) 39... Qxc6 $1 {[%emt 0:00:26]} 40. bxc6 $11 {[%emt 0:00:04][%mdl 4096] Endgame KBB-KBB} Bd6+ {[%emt 0:00:41]} 41. Kg1 {[%emt 0:11:36]} f6 {[%emt 0:13:09]} 42. Kf2 {[%emt 0:03:18]} Kg7 {[%emt 0:01:58]} 43. Bb6 {[%emt 0:01:32]} Kf7 {[%emt 0:03:25]} 44. Ke3 {[%emt 0:02:12]} Ke7 {[%emt 0:01:17] Prevents Bd8+.} 45. Kd4 {[%emt 0:00:49]} g5 {[%emt 0:02:29]} 46. Be2 {[%emt 0:02:49]} h4 {[%emt 0:00:38]} 47. Kc3 {[%emt 0:03:36]} e5 {[%emt 0:04:23]} (47... f5 $1 $11) 48. Bf1 {[%emt 0:03:17]} f5 $1 {[%emt 0:01:58]} 49. Bf2 {[%emt 0:03:04]} fxe4 {[%emt 0:02:40]} 50. fxe4 {[%emt 0:00:04]} Be6 {[%emt 0:01:29]} 51. Ba6 {[%emt 0:02:22]} Bc7 {[%emt 0:01:32]} 52. Kb4 {[%emt 0:00:46] Inhibits Ba5+.} h3 {[%emt 0:00:11]} 53. gxh3 {[%emt 0:00:04]} Bxh3 {[%emt 0:00:01]} 54. Kc5 {[%emt 0:00:51]} Be6 {[%emt 0:01:04]} 55. Be2 {[%emt 0:01:24]} (55. Be3 $14 Kf6 56. Kb5) 55... Bc8 {[%emt 0:01:08]} ({Black should play} 55... Bb3 $1 $11) 56. Bc4 {[%emt 0:00:47]} Bh3 {[%emt 0:00:37]} 57. Kb5 {[%emt 0:00:14]} Bc8 {[%emt 0:00:18]} 58. Bc5+ {[%emt 0:00:46]} Kd8 {[%emt 0:00:44]} 59. Be3 {[%emt 0:00:37]} g4 {[%emt 0:00:06]} 60. Bg5+ {[%emt 0:00:06]} Ke8 {[%emt 0:00:02]} 61. Bh4 {[%emt 0:00:13]} Kf8 {[%emt 0:01:10]} 62. Kc5 {[%emt 0:00:20]} Kg7 {[%emt 0:00:52]} 63. Be7 {[%emt 0:01:12]} (63. Be2 $14) 63... g3 {[%emt 0:00:03] ( -> ...g2)} 64. Bf1 {[%emt 0:00:24]} Ba6 {[%emt 0:00:57]} 65. Bg2 $1 $16 {[%emt 0:00:08] And now Bd6 would win.} ({Not} 65. Bxa6 $2 g2 66. Bc4 g1=Q+ $19) 65... Kf7 $2 {[%emt 0:00:27][%mdl 8192] [#]} (65... Be2 $16) 66. Bh4 $2 {[%emt 0:00:24]} (66. Bd6 $1 $18 {[%cal Rd6c7] is the precise move to win.} Bxd6+ 67. Kxd6) 66... Kg6 {[%emt 0:00:28]} (66... Bd3 $16 {keeps fighting.} 67. Bxg3 Bc2) 67. Bxg3 $18 {[%emt 0:00:12] Threatens to win with Bf3.} Kg5 $2 {[%emt 0:00:07]} (67... Kf6 {is more resistant.} 68. Bf3 Bd3) 68. Bh3 $2 {[%emt 0:00:37]} (68. Bf3 {Hoping for Kd5.} Bd3 69. Kd5) 68... Bd3 {[%emt 0:00:10]} 69. Kd5 {[%emt 0:01:10]} Bb5 $2 {[%emt 0:00:25] [#]} (69... Kf6 $18 70. Bh4+ Kf7 71. Be6+ Kf8) 70. Bd7 $1 {[%emt 0:00:20]} Kf6 {[%emt 0:00:21]} 71. Bh4+ {[%emt 0:00:30]} Kf7 {[%emt 0:00:01]} 72. Be6+ {[%emt 0:00:13]} Ke8 {[%emt 0:00:03]} 73. Bf6 {[%emt 0:00:56]} Ba4 {[%emt 0:00:08]} 74. Bd7+ $1 {[%emt 0:00:41]} Kf7 {[%emt 0:00:04]} 75. Bxe5 {[%emt 0:00:21]} Bb3+ {[%emt 0:01:41]} 76. Kd4 {[%emt 0:00:05]} Bb6+ {[%emt 0:00:16]} 77. Kc3 {[%emt 0:00:09]} Ba4 {[%emt 0:02:08]} 78. Bd6 {[%emt 0:00:29] Weighted Error Value: White=0.11 (very precise) /Black=0.12 (very precise)} 1-0